bitfinex-derivatives/quotes_BNBF0:USTF0_20250523
["timestamp","ask_amount","ask_price","bid_price","bid_amount"]
[1748027242303,0.76753155,667.31,666.38,1.11787882]
[1748027242499,0.29971527,667.3,666.38,1.11787882]
[1748027242902,0.29971527,667.3,666.36,1.11787882]
[1748027243199,0.46802372,667.29,666.36,1.11787882]
[1748027243499,0.29972425,667.28,666.36,1.11787882]
[1748027245299,0.46862824,667.27,666.36,1.11787882]
[1748027245604,0.76836147,667.26,666.39,1.11787882]
[1748027245806,0.29973772,667.25,666.39,1.11787882]
[1748027246304,0.46899654,667.24,666.39,1.11787882]
[1748027246504,0.29973772,667.25,666.39,1.11787882]
[1748027246701,0.46901742,667.24,666.39,1.11787882]
[1748027246901,0.29973772,667.25,666.39,1.11787882]
[1748027247099,0.46903036,667.24,666.39,1.11787882]
[1748027247305,0.46945298,667.23,666.39,1.11787882]
[1748027247504,0.29973772,667.25,666.43,1.11787882]
[1748027247706,0.4694765,667.24,666.43,1.11787882]
[1748027247906,0.4694765,667.23,666.43,1.11787882]
[1748027248204,0.47000159,667.22,666.43,1.11787882]
[1748027248404,0.47000159,667.21,666.43,1.11787882]
[1748027248600,0.47000159,667.2,666.43,1.11787882]
[1748027248804,0.29973772,667.25,666.43,1.11787882]
[1748027249004,0.46996022,667.24,666.43,1.11787882]
[1748027249204,0.46996022,667.23,666.43,1.11787882]
[1748027249401,0.46996022,667.22,666.43,1.11787882]
[1748027249605,0.46996022,667.21,666.43,1.11787882]
[1748027249800,0.46996022,667.2,666.43,1.11787882]
[1748027250006,0.46996022,667.19,666.47,1.11787882]
[1748027250199,0.46996022,667.18,666.47,1.11787882]
[1748027250401,0.46996022,667.17,666.47,1.11787882]
[1748027250605,0.46996022,667.16,666.47,1.11787882]
[1748027250807,0.29973772,667.25,666.47,1.11787882]
[1748027251003,0.47049877,667.24,666.47,1.11787882]
[1748027251304,0.47049877,667.23,666.47,1.11787882]
[1748027251502,0.47049877,667.22,666.47,1.11787882]
[1748027251702,0.47049877,667.21,666.47,1.11787882]
[1748027251906,0.29973772,667.25,666.47,1.11787882]
[1748027251907,0.47049877,667.2,666.47,1.11787882]
[1748027252104,0.47049877,667.19,666.47,1.11787882]
[1748027252307,0.47049877,667.18,666.47,1.11787882]
[1748027252608,0.47049877,667.17,666.47,1.11787882]
[1748027252810,0.47049877,667.16,666.47,1.11787882]
[1748027253004,0.29973772,667.25,666.47,1.11787882]
[1748027253203,0.47045247,667.24,666.47,1.11787882]
[1748027253404,0.47045247,667.24,665.62,3.72647286]
[1748027253405,0.47045247,667.23,666.45,1.11787882]
[1748027253702,0.47045247,667.22,666.45,1.11787882]
[1748027253906,0.47045247,667.21,666.45,1.11787882]
[1748027254102,0.29973772,667.25,666.45,1.11787882]
[1748027254103,0.47045247,667.2,666.45,1.11787882]
[1748027254307,0.47045247,667.19,666.45,1.11787882]
[1748027254506,0.47045247,667.18,666.45,1.11787882]
[1748027254811,0.47045247,667.17,666.45,1.11787882]
[1748027255013,0.47045247,667.16,666.45,1.11787882]
[1748027255311,1.087,667.15,666.45,1.11787882]
[1748027256811,0.47058262,667.14,666.45,1.11787882]
[1748027257009,0.47058262,667.13,666.45,1.11787882]
[1748027257209,0.47058262,667.12,666.45,1.11787882]
[1748027257410,0.47052704,667.11,666.45,1.11787882]
[1748027257709,1.087,667.15,666.45,1.11787882]
[1748027257710,0.47052704,667.1,666.45,1.11787882]
[1748027257911,0.47052704,667.09,666.41,1.11787882]
[1748027258211,0.47052704,667.08,666.41,1.11787882]
[1748027258411,0.47052704,667.07,666.41,1.11787882]
[1748027258611,0.47052704,667.06,666.41,1.11787882]
[1748027258811,0.47052704,667.05,666.41,1.11787882]
[1748027259008,1.087,667.15,666.41,1.11787882]
[1748027259312,0.47046772,667.14,666.41,1.11787882]
[1748027259607,0.47046772,667.13,666.41,1.11787882]
[1748027259812,0.47046772,667.12,666.41,1.11787882]
[1748027260111,0.47046772,667.11,666.41,1.11787882]
[1748027260412,0.47046772,667.1,666.4,1.11787882]
[1748027260608,0.47046772,667.09,666.4,1.11787882]
[1748027260906,0.47046772,667.08,666.4,1.11787882]
[1748027261107,0.47046772,667.07,666.4,1.11787882]
[1748027261311,0.47046772,667.06,666.4,1.11787882]
[1748027261508,1.087,667.15,666.4,1.11787882]
[1748027261708,0.47060139,667.14,666.4,1.11787882]
[1748027261908,0.47060139,667.13,666.4,1.11787882]
[1748027262109,0.47060139,667.12,666.4,1.11787882]
[1748027262409,0.47060139,667.11,666.35,1.11787882]
[1748027262612,0.47060139,667.1,666.35,1.11787882]
[1748027262812,0.47060139,667.09,666.35,1.11787882]
[1748027263010,0.47060139,667.08,666.35,1.11787882]
[1748027263214,0.47060139,667.07,666.35,1.11787882]
[1748027263514,0.47060139,667.06,666.35,1.11787882]
[1748027263713,0.47060139,667.05,666.35,1.11787882]
[1748027264010,0.47060139,667.04,666.35,1.11787882]
[1748027264215,1.087,667.15,666.35,1.11787882]
[1748027264415,0.47051815,667.14,666.35,1.11787882]
[1748027264616,0.47049506,667.13,666.35,1.11787882]
[1748027264816,0.47049506,667.12,666.35,1.11787882]
[1748027265015,0.47049506,667.11,666.35,1.11787882]
[1748027265213,0.47049506,667.1,666.35,1.11787882]
[1748027265416,0.47049506,667.09,666.37,1.11787882]
[1748027265617,0.47049506,667.08,666.37,1.11787882]
[1748027265817,1.087,667.15,666.37,1.11787882]
[1748027265818,0.47049506,667.07,666.37,1.11787882]
[1748027266018,0.47049506,667.06,666.37,1.11787882]
[1748027266218,0.47049506,667.05,666.37,1.11787882]
[1748027266514,1.087,667.15,666.37,1.11787882]
[1748027266714,0.47010996,667.14,666.37,1.11787882]
[1748027266919,0.47010996,667.13,666.37,1.11787882]
[1748027268020,0.29979613,667.12,666.37,1.11787882]
[1748027268221,0.47010996,667.11,666.37,1.11787882]
[1748027268420,0.47010996,667.1,666.37,1.11787882]
[1748027268620,0.47010996,667.09,666.37,1.11787882]
[1748027268823,0.47010996,667.08,666.37,1.11787882]
[1748027269020,0.47010996,667.07,666.37,1.11787882]
[1748027269321,0.47010996,667.06,666.37,1.11787882]
[1748027269517,0.47000472,667.05,666.37,1.11787882]
[1748027269819,0.29979613,667.12,666.37,1.11787882]
[1748027270019,0.46996334,667.11,666.37,1.11787882]
[1748027270218,0.76976846,667.1,666.37,1.11787882]
[1748027270421,0.46996334,667.09,666.35,1.11787882]
[1748027270618,0.46996334,667.08,666.35,1.11787882]
[1748027270921,0.46996334,667.07,666.35,1.11787882]
[1748027271121,0.46996334,667.06,666.35,1.11787882]
[1748027271318,0.29980512,667.1,666.35,1.11787882]
[1748027271522,0.46989488,667.09,666.35,1.11787882]
[1748027271719,0.46989488,667.08,666.35,1.11787882]
[1748027271923,0.46989488,667.07,666.35,1.11787882]
[1748027272224,0.46989488,667.06,666.35,1.11787882]
[1748027272424,0.29980512,667.1,666.35,1.11787882]
[1748027272624,0.46981553,667.09,666.34,1.11787882]
[1748027272923,0.46981553,667.08,666.34,1.11787882]
[1748027273124,0.46981553,667.07,666.34,1.11787882]
[1748027273323,0.29980512,667.1,666.34,1.11787882]
[1748027273524,0.46978419,667.09,666.34,1.11787882]
[1748027273820,0.46978419,667.08,666.34,1.11787882]
[1748027274025,0.46978419,667.07,666.34,1.11787882]
[1748027274319,0.29980512,667.1,666.34,1.11787882]
[1748027274519,0.46971968,667.09,666.34,1.11787882]
[1748027274725,0.76953379,667.08,666.34,1.11787882]
[1748027274925,0.76953828,667.07,666.34,1.11787882]
[1748027275128,0.76954278,667.06,666.34,1.11787882]
[1748027275323,0.76954727,667.05,666.34,1.11787882]
[1748027275527,0.46969873,667.04,666.34,1.11787882]
[1748027275826,0.46969873,667.03,666.34,1.11787882]
[1748027276028,0.46969873,667.02,666.34,1.11787882]
[1748027276226,0.46969873,667.01,666.34,1.11787882]
[1748027276423,0.29982759,667.05,666.34,1.11787882]
[1748027276626,0.46962867,667.04,666.34,1.11787882]
[1748027276828,0.46962867,667.03,666.34,1.11787882]
[1748027277028,0.29982759,667.05,666.34,1.11787882]
[1748027277231,0.46959173,667.04,666.34,1.11787882]
[1748027277431,0.46959173,667.03,666.33,1.11787882]
[1748027277630,0.76943281,667.02,666.33,1.11787882]
[1748027277924,0.46959173,667.01,666.33,1.11787882]
[1748027278130,0.46959173,667.0,666.33,1.11787882]
[1748027278324,0.46959173,666.99,666.33,1.11787882]
[1748027278530,0.46959173,666.98,666.33,1.11787882]
[1748027278728,0.46959173,666.97,666.33,1.11787882]
[1748027279031,0.46959173,666.96,666.33,1.11787882]
[1748027279228,0.46959173,666.95,666.33,1.11787882]
[1748027279428,0.46959173,666.94,666.33,1.11787882]
[1748027279633,0.29984108,667.02,666.33,1.11787882]
[1748027279830,0.47137499,667.01,666.33,1.11787882]
[1748027280033,0.47137499,667.0,666.33,1.11787882]
[1748027280233,0.47137499,666.99,666.33,1.11787882]
[1748027280434,0.47137499,666.98,666.22,1.11787882]
[1748027280734,0.47136438,666.97,666.22,1.11787882]
[1748027280927,0.47136438,666.96,666.22,1.11787882]
[1748027281131,0.47136438,666.95,666.22,1.11787882]
[1748027281333,0.47136438,666.94,666.22,1.11787882]
[1748027281627,1.10744052,667.01,666.22,1.11787882]
[1748027281832,0.47137581,667.0,666.22,1.11787882]
[1748027282031,0.47137581,666.99,666.22,1.11787882]
[1748027282232,0.47137293,666.98,666.22,1.11787882]
[1748027282434,0.47137293,666.97,666.22,1.11787882]
[1748027282734,0.47137293,666.96,666.22,1.11787882]
[1748027282931,0.29984108,667.02,666.21,1.11787882]
[1748027283131,0.4713186,667.01,666.21,1.11787882]
[1748027283335,0.4713186,667.0,666.21,1.11787882]
[1748027283535,0.4713186,666.99,666.21,1.11787882]
[1748027283736,0.4713186,666.98,666.21,1.11787882]
[1748027283936,0.4713186,666.97,666.21,1.11787882]
[1748027284132,0.29984108,667.02,666.21,1.11787882]
[1748027284337,0.47121995,667.01,666.21,1.11787882]
[1748027284537,0.47121995,667.0,666.21,1.11787882]
[1748027284739,0.47121995,666.99,666.21,1.11787882]
[1748027284941,0.47121995,666.98,666.21,1.11787882]
[1748027285234,0.47121995,666.97,666.21,1.11787882]
[1748027285438,0.47121995,666.96,666.2,1.11787882]
[1748027285633,0.29984108,667.02,666.2,1.11787882]
[1748027285836,0.47125732,667.01,666.2,1.11787882]
[1748027286037,0.47125732,667.0,666.2,1.11787882]
[1748027286238,0.47125732,666.99,666.2,1.11787882]
[1748027286436,0.47125732,666.98,666.2,1.11787882]
[1748027286635,0.47125732,666.97,666.2,1.11787882]
[1748027286833,0.47125732,666.96,666.2,1.11787882]
[1748027287138,0.77112537,666.96,666.2,1.11787882]
[1748027287338,0.47125732,666.95,666.2,1.11787882]
[1748027287539,0.47125732,666.94,666.2,1.11787882]
[1748027287733,0.29986805,666.96,666.2,1.11787882]
[1748027287734,0.77113886,666.93,666.2,1.11787882]
[1748027287937,0.47125732,666.92,666.2,1.11787882]
[1748027288239,0.47125732,666.92,666.16,1.11787882]
[1748027288439,0.29988154,666.93,666.16,1.11787882]
[1748027289540,0.47153803,666.92,666.16,1.11787882]
[1748027289840,0.29988154,666.93,666.16,1.11787882]
[1748027290033,0.4715394,666.92,666.16,1.11787882]
[1748027290234,0.29988154,666.93,666.16,1.11787882]
[1748027290438,0.4715045,666.92,666.16,1.11787882]
[1748027290634,0.29988154,666.93,666.16,1.11787882]
[1748027290835,0.47160513,666.92,666.16,1.11787882]
[1748027291038,0.29988154,666.93,666.16,1.11787882]
[1748027291241,0.47156277,666.92,666.13,1.11787882]
[1748027291441,0.47162916,666.91,666.13,1.11787882]
[1748027291641,0.29988154,666.93,666.13,1.11787882]
[1748027291840,0.47163267,666.92,666.13,1.11787882]
[1748027292136,0.47163267,666.91,666.13,1.11787882]
[1748027292334,0.29988154,666.93,666.13,1.11787882]
[1748027292537,0.47160018,666.92,666.13,1.11787882]
[1748027292740,0.47160018,666.91,666.13,1.11787882]
[1748027292936,0.29988154,666.93,666.13,1.11787882]
[1748027293139,0.4716071,666.92,666.13,1.11787882]
[1748027293436,0.4716071,666.91,666.13,1.11787882]
[1748027293637,0.4716071,666.9,666.07,1.11787882]
[1748027293935,0.4716071,666.89,666.07,1.11787882]
[1748027294136,0.4716071,666.88,666.07,1.11787882]
[1748027294338,0.4716071,666.87,666.07,1.11787882]
[1748027294635,0.4716071,666.86,666.07,1.11787882]
[1748027294839,0.29988154,666.93,666.07,1.11787882]
[1748027295043,0.47152625,666.92,666.07,1.11787882]
[1748027295242,0.47152625,666.91,666.07,1.11787882]
[1748027295444,0.47152625,666.9,666.07,1.11787882]
[1748027295642,0.47152625,666.89,666.07,1.11787882]
[1748027295842,0.47152625,666.88,666.07,1.11787882]
[1748027296044,0.47152625,666.87,666.07,1.11787882]
[1748027296344,0.47152625,666.86,666.07,1.11787882]
[1748027296540,0.29988154,666.93,666.05,1.11787882]
[1748027296740,0.471489,666.92,666.05,1.11787882]
[1748027296942,0.471489,666.91,666.05,1.11787882]
[1748027297140,0.471489,666.9,666.05,1.11787882]
[1748027297338,0.29988154,666.93,666.05,1.11787882]
[1748027297339,0.471489,666.89,666.05,1.11787882]
[1748027297540,0.471489,666.88,666.05,1.11787882]
[1748027297745,0.471489,666.87,666.05,1.11787882]
[1748027297940,0.471489,666.86,666.05,1.11787882]
[1748027298140,0.29988154,666.93,666.05,1.11787882]
[1748027298339,0.47154077,666.92,666.05,1.11787882]
[1748027298542,0.47155318,666.91,666.05,1.11787882]
[1748027298746,0.47155318,666.9,666.05,1.11787882]
[1748027298947,0.47155318,666.89,666.09,1.11787882]
[1748027299146,0.47155318,666.88,666.09,1.11787882]
[1748027299346,0.47155318,666.87,666.09,1.11787882]
[1748027299546,0.47155318,666.86,666.09,1.11787882]
[1748027299742,0.47155318,666.85,666.09,1.11787882]
[1748027299944,0.29988154,666.93,666.09,1.11787882]
[1748027300146,0.47148112,666.92,666.09,1.11787882]
[1748027300347,0.47148112,666.91,666.09,1.11787882]
[1748027300541,0.47148112,666.9,666.09,1.11787882]
[1748027300747,0.47148112,666.89,666.09,1.11787882]
[1748027300948,0.47148112,666.88,666.09,1.11787882]
[1748027301148,0.47148112,666.87,666.09,1.11787882]
[1748027301349,0.47148112,666.86,666.09,1.11787882]
[1748027301647,0.47148112,666.85,666.09,1.11787882]
[1748027301849,0.47148112,666.84,666.09,1.11787882]
[1748027302048,0.47148112,666.83,666.09,1.11787882]
[1748027302248,1.625,666.84,666.09,1.11787882]
[1748027302445,0.47135653,666.83,666.09,1.11787882]
[1748027302649,0.47135653,666.82,666.09,1.11787882]
[1748027302845,0.47135653,666.81,666.09,1.11787882]
[1748027303050,0.47135653,666.8,666.09,1.11787882]
[1748027303244,0.47135653,666.79,666.09,1.11787882]
[1748027303450,1.625,666.84,666.09,1.11787882]
[1748027303749,0.47126889,666.83,666.09,1.11787882]
[1748027303947,0.47124683,666.82,666.01,1.11787882]
[1748027304148,0.47124683,666.81,666.01,1.11787882]
[1748027304348,0.47124683,666.8,666.01,1.11787882]
[1748027304552,0.47124683,666.79,666.01,1.11787882]
[1748027304855,1.625,666.84,666.01,1.11787882]
[1748027305046,0.47104717,666.83,666.01,1.11787882]
[1748027305250,0.47104717,666.82,666.01,1.11787882]
[1748027305453,0.47104717,666.81,666.01,1.11787882]
[1748027305752,0.47104717,666.8,666.01,1.11787882]
[1748027305949,0.47104717,666.79,666.01,1.11787882]
[1748027306148,1.625,666.84,666.01,1.11787882]
[1748027306454,0.4708341,666.83,666.01,1.11787882]
[1748027306752,0.4708341,666.82,666.03,1.11787882]
[1748027306952,0.4708341,666.81,666.03,1.11787882]
[1748027307153,0.4708341,666.8,666.03,1.11787882]
[1748027307453,1.625,666.84,666.03,1.11787882]
[1748027307754,0.47077597,666.83,666.03,1.11787882]
[1748027307953,0.47077597,666.82,666.03,1.11787882]
[1748027308150,0.47077597,666.81,666.03,1.11787882]
[1748027308349,0.47077597,666.8,666.03,1.11787882]
[1748027308554,0.47077597,666.79,666.03,1.11787882]
[1748027308754,1.625,666.84,666.03,1.11787882]
[1748027308955,0.47079792,666.83,666.03,1.11787882]
[1748027309152,0.47079792,666.82,666.02,1.11787882]
[1748027309454,0.47079792,666.81,666.02,1.11787882]
[1748027309655,0.47079792,666.8,666.02,1.11787882]
[1748027309954,0.47079792,666.79,666.02,1.11787882]
[1748027310155,1.625,666.84,666.02,1.11787882]
[1748027310350,0.47074685,666.83,666.02,1.11787882]
[1748027310550,0.47074685,666.82,666.02,1.11787882]
[1748027310751,0.47074685,666.81,666.02,1.11787882]
[1748027311050,0.47074685,666.8,666.02,1.11787882]
[1748027311249,0.47075705,666.79,666.02,1.11787882]
[1748027311454,1.625,666.84,666.02,1.11787882]
[1748027311653,0.47078901,666.83,666.02,1.11787882]
[1748027311849,0.47078901,666.82,666.02,1.11787882]
[1748027312150,0.47078901,666.81,666.02,1.11787882]
[1748027312356,0.47078901,666.8,666.02,1.11787882]
[1748027312555,0.47078901,666.79,666.02,1.11787882]
[1748027312761,1.625,666.84,666.02,1.11787882]
[1748027313058,0.47075883,666.83,666.02,1.11787882]
[1748027313262,0.47075883,666.82,666.02,1.11787882]
[1748027313457,0.47075883,666.81,666.02,1.11787882]
[1748027313660,0.47075883,666.8,666.02,1.11787882]
[1748027313863,0.47075883,666.79,666.02,1.11787882]
[1748027314062,0.47075883,666.78,666.03,1.11787882]
[1748027314256,1.625,666.84,666.03,1.11787882]
[1748027314456,0.47073748,666.83,666.03,1.11787882]
[1748027314657,0.47073748,666.82,666.03,1.11787882]
[1748027314861,0.47073748,666.81,666.03,1.11787882]
[1748027315061,0.47073748,666.8,666.03,1.11787882]
[1748027315263,0.47073748,666.79,666.03,1.11787882]
[1748027315460,0.47073748,666.78,666.03,1.11787882]
[1748027315659,0.47088146,666.77,666.03,1.11787882]
[1748027315862,0.47086669,666.76,666.03,1.11787882]
[1748027316061,1.625,666.84,666.03,1.11787882]
[1748027316262,1.10744052,666.86,666.03,1.11787882]
[1748027316263,0.77080407,666.83,666.03,1.11787882]
[1748027316469,0.47087756,666.82,666.03,1.11787882]
[1748027316662,1.40736703,666.83,666.03,1.11787882]
[1748027316866,0.77087116,666.82,666.03,1.11787882]
[1748027317062,0.77087566,666.81,666.03,1.11787882]
[1748027317261,0.77088016,666.8,666.03,1.11787882]
[1748027317462,0.77088466,666.79,666.03,1.11787882]
[1748027317662,0.77088915,666.78,666.03,1.11787882]
[1748027317862,0.77089365,666.77,666.03,1.11787882]
[1748027318066,2.09589815,666.76,666.03,1.11787882]
[1748027318267,0.77090265,666.75,666.03,1.11787882]
[1748027318462,0.77090715,666.74,666.03,1.11787882]
[1748027318668,0.47094015,666.73,666.03,1.11787882]
[1748027318865,0.47094015,666.72,665.98,1.11787882]
[1748027319062,0.299967,666.74,665.98,1.11787882]
[1748027319266,0.47093544,666.73,665.98,1.11787882]
[1748027319471,0.47093544,666.72,665.98,1.11787882]
[1748027319667,0.299967,666.74,665.98,1.11787882]
[1748027319864,0.47097728,666.73,665.98,1.11787882]
[1748027320068,0.47097728,666.72,665.98,1.11787882]
[1748027320269,0.299967,666.74,665.98,1.11787882]
[1748027320471,0.47093472,666.73,665.98,1.11787882]
[1748027320669,0.47093472,666.72,665.98,1.11787882]
[1748027320871,0.47093472,666.71,665.98,1.11787882]
[1748027321073,0.299967,666.74,665.98,1.11787882]
[1748027321370,0.47087974,666.73,665.98,1.11787882]
[1748027321671,0.47087974,666.72,665.98,1.11787882]
[1748027321868,0.299967,666.74,665.98,1.11787882]
[1748027322365,0.47088209,666.73,665.98,1.11787882]
[1748027322564,0.47088209,666.72,665.98,1.11787882]
[1748027322768,0.299967,666.74,665.99,1.11787882]
[1748027322966,0.47091071,666.73,665.99,1.11787882]
[1748027323167,0.47091071,666.72,665.99,1.11787882]
[1748027323367,0.299967,666.74,665.99,1.11787882]
[1748027323567,0.47088993,666.73,665.99,1.11787882]
[1748027323768,0.47088993,666.72,665.99,1.11787882]
[1748027323969,0.299967,666.74,665.99,1.11787882]
[1748027324173,0.47092452,666.73,665.99,1.11787882]
[1748027324373,0.47092452,666.72,665.99,1.11787882]
[1748027324672,0.299967,666.74,665.99,1.11787882]
[1748027324869,0.47092731,666.73,665.99,1.11787882]
[1748027325075,0.47092731,666.72,665.99,1.11787882]
[1748027325273,0.47088399,666.71,665.97,1.11787882]
[1748027325474,0.299967,666.74,665.97,1.11787882]
[1748027325873,0.47077241,666.73,665.97,1.11787882]
[1748027326070,0.47077241,666.72,665.97,1.11787882]
[1748027326273,0.47077241,666.71,665.97,1.11787882]
[1748027326469,0.299967,666.74,665.97,1.11787882]
[1748027326674,0.47056802,666.73,665.97,1.11787882]
[1748027326973,0.47056802,666.72,665.97,1.11787882]
[1748027327173,0.299967,666.74,665.97,1.11787882]
[1748027327373,0.47046734,666.73,665.97,1.11787882]
[1748027327574,0.47046734,666.72,665.97,1.11787882]
[1748027327771,0.47046734,666.71,665.97,1.11787882]
[1748027328069,0.299967,666.74,665.97,1.11787882]
[1748027328274,0.47046058,666.73,665.97,1.11787882]
[1748027328476,0.47046058,666.72,665.96,1.11787882]
[1748027328777,0.47046058,666.71,665.96,1.11787882]
[1748027329077,0.299967,666.74,665.96,1.11787882]
[1748027329270,0.47043453,666.73,665.96,1.11787882]
[1748027329474,0.47042907,666.72,665.96,1.11787882]
[1748027329673,0.47042907,666.71,665.96,1.11787882]
[1748027329971,0.299967,666.74,665.96,1.11787882]
[1748027330275,0.47047085,666.73,665.96,1.11787882]
[1748027330578,0.299967,666.74,666.0,1.11787882]
[1748027332979,0.299967,666.74,666.05,1.11787882]
[1748027334480,0.47091135,666.73,666.05,1.11787882]
[1748027334779,0.299967,666.74,666.05,1.11787882]
[1748027335080,0.47094062,666.73,666.05,1.11787882]
[1748027335274,0.299967,666.74,666.05,1.11787882]
[1748027335477,0.47096928,666.73,666.06,1.11787882]
[1748027335679,0.299967,666.74,666.06,1.11787882]
[1748027335981,0.47107467,666.73,666.06,1.11787882]
[1748027336180,0.299967,666.74,666.06,1.11787882]
[1748027336476,0.47107191,666.73,666.06,1.11787882]
[1748027336680,0.47115534,666.72,666.06,1.11787882]
[1748027336975,0.299967,666.74,666.06,1.11787882]
[1748027337181,0.47115522,666.73,666.06,1.11787882]
[1748027337376,0.47115522,666.72,666.06,1.11787882]
[1748027337575,0.299967,666.74,666.06,1.11787882]
[1748027337780,0.47123091,666.73,666.06,1.11787882]
[1748027337977,0.47123091,666.72,666.06,1.11787882]
[1748027338182,0.299967,666.74,666.11,1.11787882]
[1748027340085,0.299967,666.74,666.32,1.11787882]
[1748027342987,0.299967,666.74,666.27,1.11787882]
[1748027345388,0.299967,666.74,666.28,1.11787882]
[1748027347292,0.299967,666.74,666.27,1.11787882]
[1748027349792,0.299967,666.74,666.26,1.11787882]
[1748027351593,1.482,666.73,666.26,1.11787882]
[1748027352799,1.482,666.73,666.18,1.11787882]
[1748027355402,1.482,666.73,666.17,1.11787882]
[1748027357707,1.482,666.73,666.19,1.11787882]
[1748027359402,1.482,666.73,666.2,1.11787882]
[1748027362511,1.482,666.73,666.23,1.11787882]
[1748027365410,1.482,666.73,666.21,1.11787882]
[1748027368114,1.482,666.73,666.2,1.11787882]
[1748027373116,1.482,666.73,666.04,1.49282924]
[1748027373618,1.482,666.73,666.21,1.12052473]
[1748027378424,1.482,666.73,664.86,0.47716475]
[1748027378425,1.482,666.73,666.2,1.12052473]
[1748027380924,1.482,666.73,666.19,1.12052473]
[1748027383424,1.482,666.73,666.21,1.12052473]
[1748027385427,1.482,666.73,666.22,1.12052473]
[1748027388630,0.299967,666.74,666.22,1.12052473]
[1748027388926,0.299967,666.74,666.24,1.12052473]
[1748027390731,1.649,666.73,666.24,1.12052473]
[1748027391327,1.649,666.73,666.26,1.12052473]
[1748027394036,1.649,666.73,666.36,1.12052473]
[1748027396234,1.649,666.73,666.39,1.12052473]
[1748027402743,1.11606435,667.05,666.39,1.12052473]
[1748027403043,0.47137994,667.04,666.39,1.12052473]
[1748027403342,0.47137994,667.03,666.39,1.12052473]
[1748027403640,0.47137994,667.02,666.39,1.12052473]
[1748027403838,0.47137994,667.01,666.39,1.12052473]
[1748027404041,0.47137994,667.0,666.39,1.12052473]
[1748027404236,0.47137994,666.99,666.39,1.12052473]
[1748027404436,0.47137994,666.98,666.39,1.12052473]
[1748027404641,0.47137994,666.97,666.39,1.12052473]
[1748027404838,0.47137994,666.96,666.39,1.12052473]
[1748027405039,0.47137994,666.95,666.43,1.12052473]
[1748027405245,1.11606435,667.0,666.43,1.12052473]
[1748027405445,0.47122462,666.99,666.43,1.12052473]
[1748027405745,0.47122462,666.98,666.43,1.12052473]
[1748027405945,0.47122462,666.97,666.43,1.12052473]
[1748027406146,0.47116819,666.96,666.43,1.12052473]
[1748027406340,0.47116819,666.95,666.43,1.12052473]
[1748027406539,0.47116819,666.94,666.43,1.12052473]
[1748027406740,1.11606435,667.0,666.43,1.12052473]
[1748027406943,0.47116518,666.99,666.43,1.12052473]
[1748027407239,0.47116518,666.98,666.43,1.12052473]
[1748027407443,0.47116518,666.97,666.43,1.12052473]
[1748027407639,0.47116518,666.96,666.43,1.12052473]
[1748027407840,0.47116518,666.95,666.43,1.12052473]
[1748027408040,0.47116518,666.94,666.42,1.12052473]
[1748027408245,1.11606435,667.0,666.42,1.12052473]
[1748027408445,0.47119497,666.99,666.42,1.12052473]
[1748027408646,0.47119497,666.98,666.42,1.12052473]
[1748027408847,0.47119497,666.97,666.42,1.12052473]
[1748027409043,0.47119497,666.96,666.42,1.12052473]
[1748027409243,0.47119497,666.95,666.42,1.12052473]
[1748027409548,1.11606435,667.0,666.42,1.12052473]
[1748027409749,0.47109397,666.99,666.42,1.12052473]
[1748027409950,0.47109397,666.98,666.37,1.12052473]
[1748027410144,0.47109397,666.97,666.37,1.12052473]
[1748027410348,0.47109397,666.96,666.37,1.12052473]
[1748027410548,0.47109397,666.95,666.37,1.12052473]
[1748027410748,1.11606435,667.04,666.37,1.12052473]
[1748027411049,0.47106434,667.03,666.37,1.12052473]
[1748027411348,0.47106434,667.02,666.37,1.12052473]
[1748027411551,0.47110104,667.01,666.37,1.12052473]
[1748027411749,0.47110104,667.0,666.37,1.12052473]
[1748027411949,0.47110104,666.99,666.37,1.12052473]
[1748027412250,0.47110104,666.98,666.37,1.12052473]
[1748027412453,0.47110104,666.97,666.37,1.12052473]
[1748027412750,0.47110104,666.96,666.37,1.12052473]
[1748027412954,1.11606435,667.05,666.37,1.12052473]
[1748027413154,0.47083551,667.04,666.37,1.12052473]
[1748027413453,0.47083551,667.03,666.37,1.12052473]
[1748027413753,0.47083551,667.02,666.37,1.12052473]
[1748027413949,0.47083551,667.01,666.37,1.12052473]
[1748027414253,0.47083551,667.0,666.37,1.12052473]
[1748027414548,0.47083551,666.99,666.37,1.12052473]
[1748027414754,0.47083551,666.98,666.37,1.12052473]
[1748027415048,0.47083551,666.97,666.37,1.12052473]
[1748027415348,0.4708515,666.96,666.37,1.12052473]
[1748027415653,1.11606435,667.05,666.38,1.12052473]
[1748027415956,0.47084559,667.04,666.38,1.12052473]
[1748027416254,0.47084559,667.03,666.38,1.12052473]
[1748027416457,0.47084559,667.02,666.38,1.12052473]
[1748027416655,0.47084559,667.01,666.38,1.12052473]
[1748027416855,0.47084559,667.0,666.38,1.12052473]
[1748027417056,0.47084559,666.99,666.38,1.12052473]
[1748027417252,0.47084559,666.98,666.38,1.12052473]
[1748027417456,0.47084559,666.97,666.38,1.12052473]
[1748027417659,0.47084559,666.96,666.38,1.12052473]
[1748027417957,1.11606435,667.04,666.38,1.12052473]